fUSD/lending_fUSD_20241216
["ID","MTS","AMOUNT","RATE_DAILY","PERIOD"]
[345571206,1734358250685,-538.24,0.00024999,3]
[345571207,1734358250695,-500.0,0.00024999,3]
[345571208,1734358250703,-500.0,0.00024999,3]
[345571209,1734358250712,-500.0,0.00024999,3]
[345571210,1734358250721,-500.0,0.00024999,3]
[345571211,1734358250730,-500.0,0.00024999,3]
[345571212,1734358250740,-500.0,0.00024999,3]
[345571213,1734358250749,-500.0,0.00024999,3]
[345571214,1734358250758,-500.0,0.00024999,3]
[345571215,1734358250767,-500.0,0.00024999,3]
[345571216,1734358250776,-500.0,0.00024999,3]
[345571217,1734358250786,-500.0,0.00024999,3]
[345571218,1734358250795,-500.0,0.00024999,3]
[345571219,1734358250804,-574.13015131,0.00024999,3]
[345571220,1734358250814,-500.0,0.00024999,3]
[345571221,1734358250823,-500.0,0.00024999,3]
[345571222,1734358250831,-619.61,0.00024999,3]
[345571223,1734358250840,-500.0,0.00024999,3]
[345571224,1734358250849,-500.0,0.00024999,3]
[345571225,1734358250859,-372.9,0.00024999,3]
[345571226,1734358250867,-500.0,0.00024999,3]
[345571227,1734358250876,-500.0,0.00024999,3]
[345571228,1734358250886,-226.97418844,0.00024999,3]
[345571229,1734358250895,-539.92,0.00024999,3]
[345571230,1734358250904,-500.0,0.00024999,3]
[345571231,1734358250913,-433.29257133,0.00024999,3]
[345571232,1734358250921,-500.0,0.00024999,3]
[345571233,1734358250931,-643.18,0.00024999,3]
[345571234,1734358250940,-334.86,0.00024999,3]
[345571235,1734358250950,-500.0,0.00024999,3]
[345571236,1734358250959,-500.0,0.00024999,3]
[345571237,1734358250968,-500.0,0.00024999,3]
[345571238,1734358250977,-500.0,0.00024999,3]
[345571239,1734358250987,-500.0,0.00024999,3]
[345571240,1734358250996,-500.0,0.00024999,3]
[345571241,1734358251006,-500.0,0.00024999,3]
[345571242,1734358251015,-500.0,0.00024999,3]
[345571243,1734358251024,-500.0,0.00024999,3]
[345571244,1734358251033,-360.95643509,0.00024999,3]
[345571245,1734358251042,-500.0,0.00024999,3]
[345571246,1734358251051,-166.68405941,0.00024999,3]
[345571247,1734358251060,-500.0,0.00024999,3]
[345571248,1734358251070,-500.0,0.00024999,3]
[345571249,1734358251080,-500.0,0.00024999,3]
[345571250,1734358251089,-500.0,0.00024999,3]
[345571251,1734358251099,-500.0,0.00024999,3]
[345571252,1734358251108,-500.0,0.00024999,3]
[345571253,1734358251118,-562.39,0.00024999,3]
[345571254,1734358251239,-500.0,0.00024999,3]
[345571255,1734358251249,-515.04,0.00024999,3]
[345571256,1734358251258,-515.04,0.00024999,3]
[345571257,1734358251267,-515.04,0.00024999,3]
[345571258,1734358251276,-515.04,0.00024999,3]
[345571259,1734358251286,-515.04,0.00024999,3]
[345571260,1734358251297,-515.04,0.00024999,3]
[345571261,1734358251307,-515.04,0.00024999,3]
[345571262,1734358251316,-515.04,0.00024999,3]
[345571263,1734358251325,-515.04,0.00024999,3]
[345571264,1734358251334,-515.04,0.00024999,3]
[345571265,1734358251343,-515.04,0.00024999,3]
[345571266,1734358251352,-515.04,0.00024999,3]
[345571267,1734358251362,-515.04,0.00024999,3]
[345571268,1734358251372,-515.04,0.00024999,3]
[345571269,1734358251381,-602.22409073,0.00024999,3]
[345571270,1734358251390,-515.04,0.00024999,3]
[345571271,1734358251399,-515.04,0.00024999,3]
[345571272,1734358251408,-515.04,0.00024999,3]
[345571273,1734358251418,-515.04,0.00024999,3]
[345571274,1734358251427,-515.04,0.00024999,3]
[345571275,1734358251436,-515.04832444,0.00024999,3]
[345571276,1734358251445,-500.0,0.00024999,3]
[345571277,1734358251454,-268.45,0.00024999,3]
[345571278,1734358251463,-500.0,0.00024999,3]
[345571279,1734358251471,-500.0,0.00024999,3]
[345571280,1734358251481,-681862.99234373,0.00025,4]
[345571281,1734358251493,-664.53410937,0.00025,2]
[345571282,1734358251503,-53278.32965611,0.00025,2]
[345571283,1734358251515,-201.03,0.00025,2]
[345571284,1734358251524,-7060511.52165513,0.00025,2]
[345571285,1734358251533,-150.0,0.00025,2]
[345571286,1734358251542,-10000.0,0.00025,2]
[345571287,1734358251551,-10000.0,0.00025,2]
[345571288,1734358251562,-590.0,0.00025,120]
[345571289,1734358251571,-4340033.99052011,0.00025,2]
[345571290,1734358251713,-792974.57101731,0.00025,2]
[345571291,1734358251743,-2856.34571725,0.00025,2]
[345571292,1734358251756,-800.89909356,0.00025,2]
[345571293,1734358251771,-9381.119514,0.00025,2]
[345571294,1734358251782,-5471.8373109,0.00025,2]
[345571295,1734358251793,-328.05823,0.00025,2]
[345571296,1734358251804,-806.400008,0.00025,2]
[345571297,1734358251912,-503.13647425,0.00021917,3]
[345571298,1734358251922,-500.0,0.00021917,3]
[345571299,1734358251931,-429.73406686,0.00021917,3]
[345571300,1734358251943,-70.26593314,0.00021917,3]
[345571301,1734358251952,-500.0,0.00021973,2]
[345571302,1734358251961,-437.23406686,0.00022521,2]
[345571303,1734358251972,-407.01334968,0.00022521,2]
[345571304,1734358251982,-538.45,0.00024623,3]
[345571305,1734358251998,-150.0,0.00024879,2]
[345571306,1734358252007,-150.0,0.00024879,2]
[345571307,1734358252016,-150.0,0.00024879,2]
[345571308,1734358252025,-150.0,0.00024879,2]
[345571309,1734358252035,-150.0,0.00024879,2]
[345571310,1734358252044,-150.0,0.00024879,2]
[345571311,1734358252053,-105.03696309,0.00024879,2]
[345571312,1734358252158,-44.96303691,0.00024879,2]
[345571313,1734358252167,-150.0,0.00024879,2]
[345571314,1734358252176,-4522.63696309,0.00025,2]
[345571315,1734358252191,-500.0,0.00021917,3]
[345571316,1734358252200,-3994.8908255,0.00025,2]
[345571317,1734358252269,-500.0,0.00021917,3]
[345571318,1734358252278,-374.21036601,0.00025,2]
[345571319,1734358252676,-232.68753635,0.00025,2]
[345571320,1734358252691,-2691.932308,0.00025,2]
[345571321,1734358252705,-1839.99999992,0.00025,2]
[345571322,1734358252727,-118967.88792921,0.00025,2]
[345571323,1734358252747,-4411.144975,0.00025,2]
[345571324,1734358472238,450.0,0.00013,2]
[345571325,1734358473351,500.0,0.00015,2]
[345571327,1734358579236,153.12,0.00010137,2]
[345571329,1734359108311,998896.88,0.0001,2]
[345571330,1734359108344,1000000.0,0.0001,2]
[345571331,1734359108377,1000000.0,0.0001,2]
[345571332,1734359108409,201939.71,0.0001,2]
[345571333,1734359108439,1546854.39397786,0.0001,2]
[345571334,1734359125496,980.18406899,0.000108,2]
[345571335,1734359134482,150.91795774,0.0001,2]
[345571336,1734359136417,5000.0,8e-05,2]
[345571337,1734359154919,10430.56229143,6.94e-05,2]
[345571339,1734359162927,7792.84436032,9.8e-05,2]
[345571340,1734359167391,731.47337613,7e-05,2]
[345571343,1734359236139,-166.98,0.00018752,2]
[345571344,1734359236160,-200.0,0.00018752,2]
[345571345,1734359236183,-300.0,0.00018999,2]
[345571346,1734359236204,-11509.05583222,0.00019,2]
[345571347,1734359236227,-496.54,0.00019106,2]
[345571348,1734359236250,-501.36,0.00019364,2]
[345571349,1734359236271,-373.63797133,0.00019699,2]
[345571350,1734359236297,-4543.735646,0.000197,2]
[345571351,1734359236925,205.0,9.8e-05,2]
[345571352,1734359241311,247.87362041,0.000101,2]
[345571353,1734359248135,-157.54626284,0.000197,2]
[345571357,1734359345119,-47901.03094,0.000197,2]
[345571358,1734359359131,-7545.567526,0.000197,2]
[345571359,1734359374091,-136821.5338,0.000197,2]
[345571371,1734359431908,-300.0,0.00019699,2]
[345571372,1734359431917,-9082.7713576,0.000197,2]
[345571373,1734359431930,-6554.56356666,0.000197,2]
[345571374,1734359431941,-5178.15743334,0.000197,2]
[345571375,1734359432147,-417.6336,0.000197,2]
[345571376,1734359432159,-2312.0,0.000197,2]
[345571386,1734359437864,-1172.09999999,0.000197,2]
[345571388,1734359437910,-120.86368836,0.000197,2]
[345571389,1734359438702,-147370.59485604,0.000197,2]
[345571390,1734359438712,-500.63,0.00019813,2]
[345571391,1734359438721,-43580.94575651,0.00019979,2]
[345571392,1734359438730,-214.56761838,0.0002,2]
[345571393,1734359438739,-495.21145756,0.0002,2]
[345571394,1734359438750,-753.0,0.00020048,2]
[345571395,1734359438759,-500.0,0.0002012,2]
[345571396,1734359438769,-760.39,0.0002012,2]
[345571397,1734359438778,-761.41,0.0002012,2]
[345571398,1734359438787,-745.28,0.0002012,2]
[345571399,1734359438796,-753.69,0.00020642,2]
[345571400,1734359438806,-200.55,0.0002079,2]
[345571401,1734359438815,-14099.0,0.00020843,2]
[345571402,1734359438823,-626.39,0.00020881,2]
[345571403,1734359438833,-500.0,0.00021164,2]
[345571404,1734359438843,-150.0,0.00021169,2]
[345571405,1734359438852,-159.90709802,0.00021233,2]
[345571406,1734359438862,-420.0,0.00021457,2]
[345571407,1734359438871,-200.55,0.0002156,2]
[345571408,1734359438883,-736.19,0.00021917,2]
[345571409,1734359438894,-758.24,0.00021917,2]
[345571410,1734359438903,-454.16055588,0.00021917,3]
[345571411,1734359438912,-503.41118719,0.00021917,3]
[345571412,1734359438923,-501.56828345,0.00021917,3]
[345571413,1734359438932,-500.0,0.00021917,3]
[345571414,1734359438941,-500.0,0.00021917,3]
[345571415,1734359438950,-500.0,0.00021917,3]
[345571416,1734359438960,-501.63001601,0.00021917,3]
[345571417,1734359438970,-500.0,0.00021917,3]
[345571418,1734359438979,-501.94896963,0.00021917,3]
[345571419,1734359438988,-500.0,0.00021917,3]
[345571420,1734359439000,-500.0,0.00021917,3]
[345571421,1734359439009,-500.0,0.00021917,3]
[345571422,1734359439018,-500.0,0.00021917,3]
[345571423,1734359439027,-500.0,0.00021917,3]
[345571424,1734359439036,-500.0,0.00021917,3]
[345571425,1734359439045,-500.0,0.00021917,3]
[345571426,1734359439054,-500.0,0.00021917,3]
[345571427,1734359439063,-500.0,0.00021917,3]
[345571428,1734359439072,-500.0,0.00021917,3]
[345571429,1734359439082,-502.1087448,0.00021917,3]
[345571430,1734359439091,-505.48989413,0.00021917,3]
[345571431,1734359439100,-503.39927343,0.00021917,3]
[345571432,1734359439109,-500.0,0.00021917,3]
[345571433,1734359439118,-500.0,0.00021917,3]
[345571434,1734359439127,-500.0,0.00021917,3]
[345571435,1734359439136,-500.0,0.00021917,3]
[345571436,1734359439145,-500.0,0.00021917,3]
[345571437,1734359439154,-500.0,0.00021917,3]
[345571438,1734359439163,-500.0,0.00021917,3]
[345571439,1734359439172,-500.0,0.00021917,3]
[345571440,1734359439181,-153.84,0.00021917,3]
[345571441,1734359439190,-500.0,0.00021917,3]
[345571442,1734359439200,-500.0,0.00021917,3]
[345571443,1734359439209,-500.0,0.00021917,3]
[345571444,1734359439218,-500.0,0.00021917,3]
[345571445,1734359439227,-500.0,0.00021917,3]
[345571446,1734359439236,-500.0,0.00021917,3]
[345571447,1734359439247,-500.0,0.00021917,3]
[345571448,1734359439256,-500.0,0.00021917,3]
[345571449,1734359439265,-500.0,0.00021917,3]
[345571450,1734359439274,-500.0,0.00021917,3]
[345571451,1734359439283,-500.0,0.00021917,3]
[345571452,1734359439292,-500.0,0.00021917,3]
[345571453,1734359439302,-281.67,0.00021917,3]
[345571454,1734359439311,-500.0,0.00021917,3]
[345571455,1734359439320,-500.0,0.00021917,3]
[345571456,1734359439330,-500.0,0.00021917,3]
[345571457,1734359439339,-600.66,0.00021917,3]
[345571458,1734359439349,-500.0,0.00021917,3]
[345571459,1734359439359,-500.0,0.00021917,3]
[345571460,1734359439368,-500.0,0.00021917,3]
[345571461,1734359439377,-500.0,0.00021917,3]
[345571462,1734359439387,-500.0,0.00021917,3]
[345571463,1734359439396,-500.0,0.00021917,3]
[345571464,1734359439405,-500.0,0.00021917,3]
[345571465,1734359439414,-500.0,0.00021917,3]
[345571466,1734359439424,-500.0,0.00021917,3]
[345571467,1734359439433,-500.0,0.00021917,3]
[345571468,1734359439442,-500.0,0.00021917,3]
[345571469,1734359439451,-159.90709489,0.00022,2]
[345571470,1734359439475,-159.90328559,0.00022,2]
[345571471,1734359439484,-257.26736089,0.00022,2]
[345571472,1734359439493,-206.40878563,0.00022,2]
[345571473,1734359439504,-159.4867872,0.00022,2]
[345571474,1734359439513,-1127.74,0.000222,2]
[345571475,1734359439522,-150.78,0.00022316,3]
[345571476,1734359439531,-500.0,0.00022316,3]
[345571477,1734359439541,-200.55,0.0002233,2]
[345571478,1734359439551,-159.636706,0.00022392,29]
[345571479,1734359439560,-250.0,0.00022425,2]
[345571480,1734359439569,-450.0,0.0002247,2]
[345571481,1734359439579,-2751.0,0.00022475,2]
[345571482,1734359439588,-500.0,0.00022498,3]
[345571483,1734359439598,-500.0,0.00022498,3]
[345571484,1734359439607,-500.0,0.00022498,3]
[345571485,1734359439617,-32426.78374086,0.00022499,2]
[345571486,1734359439626,-159.636706,0.000225,2]
[345571487,1734359439635,-23900.0,0.00022539,2]
[345571489,1734359439644,-1138.6,0.00022552,2]
[345571490,1734359439653,-1054.45,0.00022572,2]
[345571491,1734359439662,-250.0,0.00022577,2]
[345571492,1734359439671,-292.38,0.00022605,2]
[345571493,1734359439680,-200.0,0.0002262,2]
[345571494,1734359439689,-2000.0,0.00022656,2]
[345571495,1734359439698,-240.82,0.00022724,2]
[345571496,1734359439707,-200.0,0.00022779,2]
[345571497,1734359439716,-407.85,0.00022779,2]
[345571498,1734359439724,-1000.0,0.00022784,2]
[345571499,1734359439733,-1500.0,0.00022796,2]
[345571500,1734359439742,-164.18,0.00022802,2]
[345571501,1734359439753,-412.23,0.00022824,2]
[345571503,1734359439763,-250.0,0.00022846,2]
[345571505,1734359439773,-250.0,0.0002297,2]
[345571506,1734359439782,-250.0,0.00023083,2]
[345571507,1734359439791,-284.55,0.00023083,2]
[345571508,1734359439800,-1628.13,0.00023083,2]
[345571509,1734359439809,-200.55,0.000231,2]
[345571510,1734359439818,-500.0,0.00023142,7]
[345571511,1734359439827,-626.39,0.00023145,2]
[345571512,1734359439837,-500.0,0.00023151,2]
[345571513,1734359439846,-160.87965911,0.00023186,2]
[345571514,1734359439855,-2000.0,0.00023286,120]
[345571515,1734359439864,-500.0,0.00023356,2]
[345571516,1734359439873,-150.99,0.00023368,2]
[345571517,1734359439884,-587.0,0.00023371,2]
[345571518,1734359439894,-160.87965903,0.000234,2]
[345571519,1734359439903,-500.0,0.00023415,7]
[345571520,1734359439913,-292.38,0.00023442,2]
[345571521,1734359439922,-2000.0,0.00023494,2]
[345571522,1734359439933,-169.21,0.00023527,2]
[345571523,1734359439942,-160.87965903,0.00023615,2]
[345571524,1734359439951,-500.0,0.00023689,7]
[345571525,1734359439963,-587.617,0.0002375,2]
[345571526,1734359439974,-500.0,0.00023778,3]
[345571527,1734359439985,-500.0,0.00023778,3]
[345571528,1734359439994,-500.0,0.00023778,3]
[345571529,1734359440012,-500.0,0.00023778,3]
[345571530,1734359440022,-500.0,0.00023778,3]
[345571531,1734359440031,-500.0,0.00023778,3]
[345571532,1734359440040,-500.0,0.00023778,3]
[345571533,1734359440050,-500.0,0.00023778,3]
[345571534,1734359440059,-280.38,0.00023778,3]
[345571535,1734359440068,-500.0,0.00023778,3]
[345571536,1734359440077,-160.87965903,0.00023829,2]
[345571537,1734359440086,-2463.49,0.00023928,5]
[345571538,1734359440095,-162.331,0.00023928,5]
[345571539,1734359440105,-831.60691794,0.00024,2]
[345571540,1734359440114,-160.87965903,0.00024043,2]
[345571541,1734359440123,-410.98275918,0.00024063,2]
[345571542,1734359440132,-975.22,0.00024066,2]
[345571543,1734359440141,-150.0,0.00024066,2]
[345571544,1734359440151,-200.0,0.000241,2]
[345571545,1734359440160,-230.0,0.000241,2]
[345571546,1734359440169,-150.0,0.00024169,2]
[345571547,1734359440178,-200.07852153,0.00024203,2]
[345571548,1734359440187,-150.0,0.00024217,2]
[345571549,1734359440196,-292.38,0.00024278,2]
[345571550,1734359440205,-2698.0,0.000243,2]
[345571551,1734359440214,-410.98275918,0.00024313,2]
[345571552,1734359440223,-164.18,0.00024322,2]
[345571553,1734359440232,-2000.0,0.00024332,2]
[345571554,1734359440243,-1127.83215763,0.000245,2]
[345571555,1734359440257,-1013.22289585,0.000245,2]
[345571556,1734359440267,-1109.46133146,0.000245,2]
[345571557,1734359440276,-500.0,0.00024501,3]
[345571558,1734359440285,-410.98275918,0.0002454,2]
[345571559,1734359440294,-153.0,0.00024542,2]
[345571560,1734359440303,-153.0,0.00024542,2]
[345571561,1734359440312,-153.0,0.00024542,2]
[345571563,1734359440322,-153.0,0.00024542,2]
[345571565,1734359440330,-153.0,0.00024542,2]
[345571566,1734359440339,-153.0,0.00024542,2]
[345571567,1734359440348,-153.0,0.00024543,2]
[345571568,1734359440358,-1000.0,0.000246,2]
[345571569,1734359440367,-500.0,0.00024623,3]
[345571570,1734359440376,-1000.0,0.00024658,2]
[345571571,1734359440386,-5052.12,0.00024658,2]
[345571572,1734359440395,-500.0,0.00024685,2]
[345571573,1734359440404,-3000.0,0.000247,2]
[345571574,1734359440413,-169.26506635,0.000247,2]
[345571575,1734359440422,-676.0,0.000247,2]
[345571576,1734359440432,-200.0,0.00024723,2]
[345571577,1734359440441,-150.0,0.00024729,2]
[345571578,1734359440451,-1500.0,0.00024734,2]
[345571579,1734359440460,-150.0,0.00024741,2]
[345571580,1734359440470,-150.0,0.00024742,2]
[345571581,1734359440479,-2111.37762,0.0002475,2]
[345571582,1734359440488,-1500.0,0.00024767,2]
[345571583,1734359440499,-150.0,0.00024769,2]
[345571584,1734359440509,-150.0,0.0002478,2]
[345571585,1734359440518,-150.0,0.00024785,2]
[345571586,1734359440527,-1500.0,0.00024787,2]
[345571587,1734359440536,-150.0,0.00024789,2]
[345571588,1734359440545,-150.0,0.0002479,2]
[345571589,1734359440554,-1500.0,0.0002479,2]
[345571590,1734359440563,-1500.0,0.00024791,2]
[345571591,1734359440572,-313.81790945,0.00024792,2]
[345571592,1734359440582,-313.81790943,0.00024819,2]
[345571593,1734359440591,-150.0,0.00024823,2]
[345571594,1734359440599,-3773.24939549,0.00024825,10]
[345571595,1734359440609,-3067.70691599,0.00024826,10]
[345571596,1734359440617,-410.98275918,0.00024827,2]
[345571597,1734359440763,-2341.8368613,0.00024828,10]
[345571598,1734359440772,-3787.63695519,0.00024828,10]
[345571599,1734359440782,-179683.83521016,0.00024831,10]
[345571600,1734359440792,-3787.63695519,0.00024832,10]
[345571601,1734359440801,-696.3318596,0.00024832,10]
[345571602,1734359440811,-90687.28562188,0.00024834,10]
[345571603,1734359440820,-696.3318596,0.00024836,10]
[345571604,1734359440829,-4156.62130466,0.00024836,10]
[345571605,1734359440839,-3067.70691599,0.00024837,10]
[345571606,1734359440847,-3773.24939549,0.00024838,10]
[345571607,1734359440857,-200.0,0.00024839,10]
[345571608,1734359440866,-90687.28562188,0.00024839,10]
[345571609,1734359440875,-200.0,0.0002484,10]
[345571610,1734359440886,-1892.31682249,0.00024841,10]
[345571611,1734359440896,-150.0,0.00024842,2]
[345571612,1734359440905,-3067.70691599,0.00024845,10]
[345571613,1734359440914,-3787.63695519,0.00024845,10]
[345571614,1734359440923,-313.81790943,0.00024846,2]
[345571615,1734359440933,-200.0,0.00024848,10]
[345571616,1734359440942,-30010.93352548,0.0002485,10]
[345571617,1734359440951,-30010.93352548,0.0002485,10]
[345571618,1734359440962,-2341.8368613,0.00024851,10]
[345571619,1734359440971,-1892.31682249,0.00024852,10]
[345571620,1734359440980,-30010.93352548,0.00024852,10]
[345571621,1734359440989,-3067.70691599,0.00024853,10]
[345571622,1734359440999,-696.3318596,0.00024853,10]
[345571623,1734359441008,-30010.93352548,0.00024854,10]
[345571624,1734359441018,-696.3318596,0.00024855,10]
[345571625,1734359441027,-3773.24939549,0.00024856,10]
[345571626,1734359441036,-4156.62130466,0.00024856,10]
[345571627,1734359441046,-90687.28562188,0.00024856,10]
[345571628,1734359441055,-150.0,0.00024857,2]
[345571629,1734359441064,-90687.28562188,0.00024858,10]
[345571630,1734359441074,-150.0,0.00024858,2]
[345571631,1734359441083,-3067.70691599,0.00024858,10]
[345571632,1734359441091,-1892.31682249,0.0002486,10]
[345571633,1734359441101,-55174.96947998,0.0002486,10]
[345571634,1734359441110,-1500.0,0.00024861,2]
[345571635,1734359441119,-179683.83521016,0.00024861,10]
[345571636,1734359441128,-245.76913092,0.00024862,10]
[345571637,1734359441137,-150.0,0.00024862,2]
[345571638,1734359441146,-1205.15721302,0.00024864,10]
[345571639,1734359441155,-2341.8368613,0.00024866,10]
[345571640,1734359441164,-55174.96947998,0.00024866,10]
[345571641,1734359441173,-30010.93352548,0.00024867,10]
[345571642,1734359441183,-55174.96947998,0.00024867,10]
[345571643,1734359441192,-30010.93352548,0.00024867,10]
[345571644,1734359441201,-55174.96947998,0.00024867,10]
[345571645,1734359441210,-150.0,0.0002487,2]
[345571646,1734359441219,-1892.31682249,0.00024872,10]
[345571647,1734359441228,-696.3318596,0.00024873,10]
[345571648,1734359441237,-1205.15721302,0.00024873,10]
[345571649,1734359441249,-313.81790943,0.00024873,2]
[345571650,1734359441258,-3787.63695519,0.00024873,10]
[345571651,1734359441266,-3067.70691599,0.00024874,10]
[345571652,1734359441275,-90687.28562188,0.00024875,10]
[345571653,1734359441284,-150.0,0.00024876,2]
[345571654,1734359441294,-4156.62130466,0.00024876,10]
[345571655,1734359441303,-245.76913092,0.00024877,10]
[345571656,1734359441312,-800.0,0.00024877,2]
[345571657,1734359441321,-179683.83521016,0.00024878,10]
[345571658,1734359441330,-1205.15721302,0.00024879,10]
[345571659,1734359441339,-1205.15721302,0.0002488,10]
[345571660,1734359441349,-55174.96947998,0.0002488,10]
[345571661,1734359441359,-1892.31682249,0.0002488,10]
[345571662,1734359441368,-3045.16759868,0.0002488,4]
[345571663,1734359441376,-2341.8368613,0.0002488,10]
[345571664,1734359441385,-1892.31682249,0.0002488,10]
[345571665,1734359441394,-245.76913092,0.00024882,10]
[345571666,1734359441403,-3773.24939549,0.00024884,10]
[345571667,1734359441412,-1205.15721302,0.00024884,10]
[345571668,1734359441421,-2000.0,0.00024886,120]
[345571669,1734359441430,-4156.62130466,0.00024887,10]
[345571670,1734359441439,-3787.63695519,0.00024888,10]
[345571671,1734359441448,-179683.83521016,0.00024889,10]
[345571672,1734359441457,-4156.62130466,0.00024889,10]
[345571673,1734359441467,-2341.8368613,0.00024889,10]
[345571674,1734359441476,-179683.83521016,0.00024889,10]
[345571675,1734359441485,-90687.28562188,0.00024889,10]
[345571676,1734359441494,-179683.83521016,0.0002489,10]
[345571677,1734359441504,-696.3318596,0.0002489,10]
[345571678,1734359441513,-10809.67491081,0.0002489,30]
[345571679,1734359441522,-245.76913092,0.0002489,10]
[345571680,1734359441531,-3787.63695519,0.0002489,10]
[345571681,1734359441540,-55174.96947998,0.00024891,10]
[345571682,1734359441550,-150.0,0.00024892,2]
[345571683,1734359441559,-4156.62130466,0.00024893,10]
[345571684,1734359441567,-150.0,0.00024893,2]
[345571685,1734359441577,-2341.8368613,0.00024895,10]
[345571686,1734359441586,-3773.24939549,0.00024895,10]
[345571687,1734359441594,-200.0,0.00024895,10]
[345571688,1734359441603,-3773.24939549,0.00024898,10]
[345571689,1734359441612,-245.76913092,0.00024898,10]
[345571690,1734359441621,-245.76913092,0.00024899,10]
[345571691,1734359441630,-396.30369731,0.00024899,2]
[345571692,1734359441639,-1205.15721302,0.000249,10]
[345571693,1734359441648,-162.7639,0.000249,2]
[345571694,1734359441658,-511.29479037,0.000249,2]
[345571695,1734359441667,-176.50499016,0.000249,2]
[345571696,1734359441676,-201.53260833,0.000249,7]
[345571697,1734359441685,-17086.94730438,0.000249,2]
[345571698,1734359441694,-437.93,0.000249,31]
[345571699,1734359441702,-437.93,0.000249,31]
[345571700,1734359441711,-437.93,0.000249,31]
[345571701,1734359441720,-437.93,0.000249,31]
[345571702,1734359441729,-437.93,0.000249,31]
[345571703,1734359441738,-437.93,0.000249,31]
[345571704,1734359441748,-437.93,0.000249,31]
[345571705,1734359441757,-437.93,0.000249,31]
[345571706,1734359441766,-437.93,0.000249,31]
[345571707,1734359441775,-437.93,0.000249,31]
[345571708,1734359441783,-437.93,0.000249,31]
[345571709,1734359441792,-437.93,0.000249,31]
[345571710,1734359441801,-437.93,0.000249,31]
[345571711,1734359441810,-437.93,0.000249,31]
[345571712,1734359441819,-437.93,0.000249,31]
[345571713,1734359441828,-437.93,0.000249,31]
[345571714,1734359441837,-396.30369731,0.000249,2]
[345571715,1734359441846,-176.68,0.000249,7]
[345571716,1734359441855,-313.81790943,0.000249,2]
[345571717,1734359441864,-150.0,0.00024903,2]
[345571718,1734359441872,-150.0,0.00024904,2]
[345571719,1734359441881,-150.0,0.00024907,2]
[345571720,1734359441893,-150.0,0.00024916,2]
[345571721,1734359441901,-150.0,0.00024925,2]
[345571722,1734359441911,-1500.0,0.00024927,2]
[345571723,1734359441920,-150.0,0.00024932,2]
[345571724,1734359441931,-150.0,0.00024941,2]
[345571725,1734359441940,-150.0,0.00024943,2]
[345571726,1734359441949,-1500.0,0.0002495,2]
[345571727,1734359441958,-1500.0,0.00024954,2]
[345571728,1734359441968,-250.0,0.0002497,2]
[345571729,1734359441978,-250.0,0.0002497,2]
[345571730,1734359441987,-300.0,0.0002497,2]
[345571731,1734359441995,-582.01413331,0.0002497,2]
[345571732,1734359442006,-1500.0,0.00024972,2]
[345571733,1734359442015,-381.8680061,0.00024973,2]
[345571734,1734359442023,-500.36615932,0.00024973,2]
[345571735,1734359442032,-150.0,0.00024974,2]
[345571736,1734359442042,-150.0,0.00024979,2]
[345571737,1734359442051,-150.0,0.00024983,2]
[345571738,1734359442060,-151.32,0.00024985,2]
[345571739,1734359442069,-28358.0,0.00024986,2]